bitfinex-derivatives/quotes_BTCF0:USTF0_20241226
["timestamp","ask_amount","ask_price","bid_price","bid_amount"]
[1735229773847,0.001,96512.0,96500.0,0.001]
[1735229774047,0.001,96519.0,96500.0,0.001]
[1735229774239,0.15463376,96510.0,96482.0,0.179]
[1735229774442,0.051853,96518.0,96482.0,0.179]
[1735229774443,0.051861,96502.0,96493.0,0.003]
[1735229774644,0.051861,96503.0,96493.0,0.003]
[1735229774941,0.15463376,96520.0,96493.0,0.003]
[1735229775138,0.15463376,96510.0,96493.0,0.003]
[1735229775348,0.051865,96495.0,96493.0,0.003]
[1735229775644,0.15481904,96510.0,96493.0,0.003]
[1735229775849,0.051852,96519.0,96493.0,0.006]
[1735229776036,0.051853,96517.0,96493.0,0.006]
[1735229776238,0.051862,96501.0,96493.0,0.006]
[1735229776537,0.15481904,96530.0,96500.0,0.001]
[1735229776741,0.051855,96514.0,96500.0,0.001]
[1735229776948,0.051856,96512.0,96500.0,0.001]
[1735229777262,0.051858,96509.0,96493.0,0.0740383]
[1735229777451,0.15481904,96520.0,96497.0,0.051864]
[1735229778054,0.051848,96527.0,96502.0,0.051861]
[1735229778244,0.051848,96527.0,96503.0,0.05186]
[1735229778441,0.00155471,96529.0,96500.0,0.001]
[1735229778646,0.051852,96519.0,96500.0,0.052862]
[1735229779042,0.00155471,96529.0,96500.0,0.001]
[1735229779043,0.001,96520.0,96500.0,0.001]
[1735229779250,0.001,96520.0,96506.0,0.051859]
[1735229779557,0.051851,96521.0,96500.0,0.051862]
[1735229779746,0.051851,96521.0,96501.0,0.051861]
[1735229780052,0.00255471,96529.0,96504.0,0.18274265]
[1735229780053,0.051852,96519.0,96504.0,0.18274265]
[1735229780242,0.051852,96519.0,96505.0,0.092]
[1735229780444,0.10317561,96520.0,96505.0,0.092]
[1735229780750,0.051855,96513.0,96505.0,0.092]
[1735229780945,0.10317561,96520.0,96505.0,0.092]
[1735229780946,0.051856,96512.0,96505.0,0.092]
[1735229781253,0.051856,96512.0,96508.0,0.18274265]
[1735229781552,0.10417561,96520.0,96508.0,0.18274265]
[1735229781553,0.051853,96518.0,96508.0,0.18274265]
[1735229781743,0.001,96520.0,96508.0,0.18274265]
[1735229781943,0.001,96520.0,96510.0,0.051857]
[1735229782252,0.001,96520.0,96509.0,0.0954]
[1735229782447,0.001,96520.0,96510.0,0.0922]
[1735229782951,0.051849,96525.0,96510.0,0.0922]
[1735229783145,0.001,96512.0,96510.0,0.0922]
[1735229783347,0.001,96512.0,96509.0,0.0954]
[1735229783540,0.001,96512.0,96510.0,0.002]
[1735229784553,0.00155471,96529.0,96510.0,0.002]
[1735229784768,0.05185,96524.0,96510.0,0.10517561]
[1735229784950,0.05185,96523.0,96510.0,0.002]
[1735229785153,0.05185,96523.0,96517.0,0.18428344]
[1735229785761,0.05185,96523.0,96518.0,0.094]
[1735229785957,0.051851,96522.0,96518.0,0.094]
[1735229786861,0.051852,96519.0,96518.0,0.094]
[1735229787153,0.051854,96516.0,96515.0,0.18428344]
[1735229787550,0.001,96523.0,96515.0,0.18428344]
[1735229788859,0.001,96523.0,96517.0,0.18428344]
[1735229789958,0.001,96523.0,96521.0,0.051851]
[1735229790147,0.001,96523.0,96517.0,0.18428344]
[1735229790662,0.001,96523.0,96522.0,0.18428344]
[1735229790863,0.051847,96528.0,96522.0,0.18428344]
[1735229790864,0.15483521,96547.0,96522.0,0.18428344]
[1735229791052,0.15483521,96547.0,96545.0,0.051838]
[1735229791253,0.00072,96559.0,96550.0,0.051835]
[1735229791563,0.051831,96560.0,96551.0,0.0924]
[1735229791757,0.10315409,96570.0,96551.0,0.0924]
[1735229791957,0.01913456,96579.0,96551.0,0.0924]
[1735229791958,0.051829,96563.0,96551.0,0.0924]
[1735229792149,0.15497932,96564.0,96551.0,0.0924]
[1735229792757,0.051829,96562.0,96551.0,0.0924]
[1735229792959,0.15497932,96564.0,96551.0,0.10989431]
[1735229793163,0.15460192,96561.0,96545.0,0.001]
[1735229793467,1.5,96563.0,96551.0,0.24571126]
[1735229793468,0.051835,96552.0,96551.0,0.24571126]
[1735229793954,0.051835,96552.0,96551.0,0.24671126]
[1735229794560,0.051835,96552.0,96551.0,0.24571126]
[1735229794857,0.051835,96552.0,96544.0,0.18393141]
[1735229795064,0.051835,96552.0,96551.0,0.001]
[1735229795756,0.05183,96560.0,96551.0,0.001]
[1735229796055,0.0479,96578.0,96551.0,0.001]
[1735229796056,0.051831,96558.0,96551.0,0.001]
[1735229796758,0.051829,96562.0,96551.0,0.001]
[1735229796965,0.0479,96578.0,96551.0,0.001]
[1735229796966,0.051829,96561.0,96551.0,0.001]
[1735229797260,0.05183,96560.0,96551.0,0.001]
[1735229797766,0.05183,96560.0,96540.0,0.15460192]
[1735229797767,0.051831,96559.0,96544.0,0.051838]
[1735229798062,0.051831,96559.0,96540.0,0.33853333]
[1735229798363,0.051831,96559.0,96545.0,0.051838]
[1735229798668,0.05183,96560.0,96540.0,0.33853333]
[1735229799152,0.051835,96552.0,96540.0,0.33853333]
[1735229799349,0.051834,96553.0,96540.0,0.18393141]
[1735229799864,0.051834,96553.0,96540.0,0.33953333]
[1735229800566,0.15460192,96580.0,96540.0,0.15560192]
[1735229800567,0.051829,96562.0,96540.0,0.15560192]
[1735229800864,0.051829,96561.0,96541.0,0.05184]
[1735229801463,0.051832,96556.0,96540.0,0.001]
[1735229801867,0.15460192,96570.0,96540.0,0.15560192]
[1735229802052,0.051826,96568.0,96550.0,0.15460192]
[1735229802357,0.051828,96564.0,96550.0,0.15460192]
[1735229802563,0.051828,96563.0,96543.0,0.051839]
[1735229802748,0.05183,96560.0,96541.0,0.001]
[1735229802948,0.051831,96558.0,96541.0,0.001]
[1735229803763,0.051832,96556.0,96541.0,0.001]
[1735229804158,0.051829,96562.0,96542.0,0.051839]
[1735229804364,0.051824,96571.0,96543.0,0.18393141]
[1735229804961,1.5008,96574.0,96550.0,0.15460192]
[1735229805156,0.051826,96567.0,96550.0,0.15460192]
[1735229805356,0.36531682,96578.0,96550.0,0.15460192]
[1735229805556,0.051829,96562.0,96543.0,0.23577041]
[1735229805765,0.15460192,96570.0,96546.0,0.051837]
[1735229805958,0.051828,96564.0,96546.0,0.051837]
[1735229806357,0.051828,96564.0,96547.0,0.18393141]
[1735229807058,0.051821,96577.0,96547.0,0.18393141]
[1735229807273,0.06531682,96578.0,96548.0,0.051836]
[1735229807864,0.15460192,96570.0,96548.0,0.18393141]
[1735229808072,0.051832,96556.0,96548.0,0.18393141]
[1735229808456,5.163e-05,96563.0,96548.0,0.18393141]
[1735229808767,0.15460192,96560.0,96548.0,0.18393141]
[1735229808965,0.051836,96549.0,96548.0,0.18393141]
[1735229809562,0.051837,96547.0,96546.0,0.18393141]
[1735229810955,0.051837,96547.0,96535.0,0.01701375]
[1735229811160,0.0912,96556.0,96527.0,0.27363141]
[1735229811161,0.15460192,96550.0,96527.0,0.18393141]
[1735229811362,0.051847,96528.0,96527.0,0.18393141]
[1735229812558,0.051847,96528.0,96508.0,0.18393141]
[1735229812559,0.051857,96511.0,96508.0,0.18393141]
[1735229812767,0.15460192,96520.0,96508.0,0.18393141]
[1735229812967,0.051854,96516.0,96508.0,0.18393141]
[1735229813271,0.051851,96522.0,96508.0,0.18393141]
[1735229813461,0.051851,96522.0,96507.0,0.051858]
[1735229814072,0.051851,96521.0,96507.0,0.051858]
[1735229814256,0.10317409,96520.0,96507.0,0.051858]
[1735229814457,0.003,96528.0,96509.0,0.051857]
[1735229814776,0.051851,96522.0,96509.0,0.051857]
[1735229814961,0.003,96528.0,96497.0,0.24571126]
[1735229814962,0.10317409,96520.0,96504.0,0.18393141]
[1735229815157,0.051852,96519.0,96507.0,0.002]
[1735229815368,0.051853,96517.0,96507.0,0.005]
[1735229815565,0.10317409,96520.0,96507.0,0.005]
[1735229815758,0.051858,96509.0,96507.0,0.005]
[1735229815960,0.051858,96509.0,96507.0,0.003]
[1735229816667,0.15502609,96520.0,96503.0,0.01619011]
[1735229816858,0.10317409,96513.0,96509.0,0.001]
[1735229817059,0.051857,96510.0,96509.0,0.001]
[1735229817363,0.005,96509.0,96507.0,0.002]
[1735229818065,0.005,96509.0,96501.0,0.0862]
[1735229818365,0.051852,96519.0,96501.0,0.0862]
[1735229818563,0.051858,96509.0,96501.0,0.0862]
[1735229818870,0.05186,96504.0,96501.0,0.0862]
[1735229819272,0.051861,96502.0,96501.0,0.0862]
[1735229819766,0.10317409,96511.0,96501.0,0.0862]
[1735229819966,0.051859,96507.0,96501.0,0.0862]
[1735229820467,0.051859,96507.0,96501.0,0.0892]
[1735229820664,0.003,96502.0,96501.0,0.0892]
[1735229821166,0.051861,96503.0,96501.0,0.0892]
[1735229821361,0.003,96507.0,96486.0,0.36183141]
[1735229821560,0.051863,96499.0,96487.0,0.0887]
[1735229821763,0.051864,96498.0,96488.0,0.18393141]
[1735229821968,0.10317409,96500.0,96488.0,0.18393141]
[1735229822567,0.003,96507.0,96488.0,0.18393141]
[1735229822969,0.003,96502.0,96490.0,0.10317409]
[1735229823278,0.003,96502.0,96488.0,0.051868]
[1735229823570,0.051855,96514.0,96490.0,0.10317409]
[1735229823768,0.051855,96514.0,96496.0,0.051864]
[1735229824076,0.09272559,96516.0,96490.0,0.10317409]
[1735229824274,0.051856,96512.0,96490.0,0.15704109]
[1735229824472,0.051856,96512.0,96490.0,0.10517409]
[1735229824774,0.051856,96512.0,96495.0,0.051865]
[1735229825463,0.10317409,96510.0,96491.0,0.051867]
[1735229826172,0.10317409,96510.0,96490.0,0.002]
[1735229826372,0.051857,96511.0,96490.0,0.002]
[1735229826573,0.051857,96511.0,96490.0,0.004]
[1735229826974,0.10317409,96520.0,96490.0,0.10717409]
[1735229827173,0.051853,96518.0,96491.0,0.002]
[1735229827474,0.051859,96506.0,96495.0,0.001]
[1735229828075,0.051859,96506.0,96490.0,0.10517409]
[1735229828373,0.10317409,96520.0,96492.0,0.051866]
[1735229828568,0.051857,96509.0,96492.0,0.051866]
[1735229828974,0.051857,96509.0,96495.0,0.001]
[1735229830273,0.051864,96496.0,96495.0,0.001]
[1735229830764,0.051869,96488.0,96487.0,0.18393141]
[1735229831582,0.051871,96483.0,96482.0,0.16506479]
[1735229832163,0.051871,96483.0,96482.0,0.01926479]
[1735229833073,0.3,96483.0,96451.0,0.09125514]
[1735229833276,0.051888,96452.0,96451.0,0.09125514]
[1735229833463,0.051888,96452.0,96445.0,0.0921]
[1735229833668,0.05189,96449.0,96445.0,0.0921]
[1735229833868,0.05189,96448.0,96445.0,0.0921]
[1735229834174,0.05189,96448.0,96445.0,0.10670476]
[1735229834365,0.051888,96453.0,96451.0,0.004]
[1735229834874,0.1461602,96469.0,96451.0,0.004]
[1735229834875,0.0942812,96469.0,96451.0,0.004]
[1735229835081,0.15454265,96480.0,96451.0,0.004]
[1735229835082,0.051877,96473.0,96459.0,0.15505809]
[1735229835272,0.15454265,96480.0,96459.0,0.10317409]
[1735229835476,0.051863,96500.0,96479.0,0.051874]
[1735229835667,0.34848,96526.0,96476.0,0.20634818]
[1735229835875,0.26895393,96509.0,96490.0,0.051867]
[1735229836177,0.051859,96507.0,96495.0,0.10317409]
[1735229836475,0.051861,96503.0,96495.0,0.10317409]
[1735229836678,0.005,96486.0,96480.0,0.10317409]
[1735229837273,0.051868,96490.0,96470.0,0.10317409]
[1735229837575,0.10317409,96500.0,96470.0,0.10317409]
[1735229837778,0.051874,96479.0,96470.0,0.10317409]
[1735229837975,0.005,96486.0,96470.0,0.10317409]
[1735229838283,0.051876,96475.0,96464.0,0.30896376]
[1735229838672,0.051876,96475.0,96465.0,0.0915]
[1735229838876,0.005,96486.0,96465.0,0.0915]
[1735229839077,0.051878,96471.0,96465.0,0.0915]
[1735229839681,0.05188,96468.0,96465.0,0.0915]
[1735229839981,0.05188,96467.0,96465.0,0.0915]
[1735229840477,0.05188,96467.0,96465.0,0.0925]
[1735229840779,0.05188,96467.0,96465.0,0.001]
[1735229841171,0.05188,96467.0,96444.0,0.1798]
[1735229841172,0.15488623,96480.0,96444.0,0.2727]
[1735229841377,0.05188,96466.0,96465.0,0.001]
[1735229841779,0.051876,96474.0,96465.0,0.001]
[1735229842283,0.051877,96473.0,96465.0,0.001]
[1735229843179,0.051877,96473.0,96456.0,0.051886]
[1735229843477,0.051885,96458.0,96444.0,0.2727]
[1735229843685,0.051887,96454.0,96444.0,0.2727]
[1735229843878,0.15488623,96470.0,96444.0,0.1837]
[1735229843879,0.051885,96459.0,96444.0,0.1837]
[1735229844079,0.051885,96458.0,96444.0,0.1837]
[1735229844383,0.051886,96456.0,96444.0,0.1837]
[1735229844882,0.051886,96456.0,96444.0,0.1877]
[1735229845285,0.051886,96456.0,96444.0,0.20264239]
[1735229845484,0.051887,96455.0,96444.0,0.20264239]
[1735229846178,0.051891,96447.0,96444.0,0.20864239]
[1735229846380,0.051892,96445.0,96444.0,0.20864239]
[1735229846583,0.051891,96446.0,96444.0,0.02494239]
[1735229846975,0.051891,96446.0,96444.0,0.01]
[1735229847780,0.051891,96446.0,96444.0,0.009]
[1735229848478,0.15488623,96460.0,96427.0,0.30896376]
[1735229848479,0.051901,96428.0,96427.0,0.30896376]
[1735229848678,0.15488623,96440.0,96422.0,0.01465143]
[1735229848876,0.051907,96417.0,96416.0,0.30896376]
[1735229849383,0.051901,96429.0,96416.0,0.30896376]
[1735229849586,0.046901,96429.0,96416.0,0.30896376]
[1735229850174,0.051904,96422.0,96416.0,0.005]
[1735229850379,0.051902,96427.0,96416.0,0.013]
[1735229850785,0.051902,96427.0,96417.0,0.15488623]
[1735229850978,0.1879,96445.0,96417.0,0.15488623]
[1735229851180,0.051902,96426.0,96416.0,0.013]
[1735229851772,0.1879,96445.0,96416.0,0.013]
[1735229851988,0.051899,96432.0,96420.0,0.15488623]
[1735229852489,0.001,96427.0,96420.0,0.15488623]
[1735229853086,0.1879,96445.0,96420.0,0.005]
[1735229853385,0.051898,96434.0,96420.0,0.15988623]
[1735229853580,0.1879,96445.0,96420.0,0.004]
[1735229853786,0.051901,96429.0,96420.0,0.009]
[1735229853980,0.1879,96445.0,96420.0,0.009]
[1735229854191,0.051893,96443.0,96420.0,0.009]
[1735229854387,0.051901,96428.0,96420.0,0.009]
[1735229854589,0.051903,96425.0,96420.0,0.009]
[1735229854885,0.15488623,96430.0,96420.0,0.009]
[1735229855089,0.051905,96421.0,96420.0,0.009]
[1735229855288,0.051905,96421.0,96420.0,0.008]
[1735229855676,0.051905,96421.0,96420.0,0.004]
[1735229855975,0.051905,96421.0,96420.0,0.008]
[1735229856489,0.051914,96403.0,96400.0,0.1]
[1735229857191,0.051914,96403.0,96400.0,0.11513954]
[1735229857379,0.051915,96401.0,96400.0,0.11513954]
[1735229858183,0.00155645,96421.0,96400.0,0.11513954]
[1735229858378,0.00155645,96421.0,96404.0,0.051914]
[1735229858686,0.00155645,96421.0,96411.0,0.05191]
[1735229858881,0.00155645,96421.0,96410.0,0.15488623]
[1735229859188,0.00155645,96421.0,96405.0,0.2814]
[1735229859580,0.051906,96419.0,96405.0,0.2814]
[1735229859779,0.051906,96419.0,96411.0,0.001]
[1735229860492,0.00155645,96421.0,96411.0,0.001]
[1735229860694,0.051909,96414.0,96405.0,0.2864]
[1735229860884,0.00155645,96421.0,96405.0,0.2864]
[1735229860885,0.05191,96412.0,96405.0,0.2864]
[1735229861195,0.00155645,96421.0,96405.0,0.338313]
[1735229861391,0.00155645,96421.0,96410.0,0.15488623]
[1735229861593,0.15488623,96460.0,96419.0,0.051906]
[1735229861898,0.051893,96444.0,96426.0,0.051902]
[1735229862088,0.051893,96444.0,96427.0,0.0908]
[1735229862287,0.21892838,96459.0,96427.0,0.0908]
[1735229862697,0.051894,96441.0,96427.0,0.0908]
[1735229862897,0.051894,96441.0,96428.0,0.01021058]
[1735229863199,0.051894,96441.0,96429.0,0.0102101]
[1735229863390,0.051894,96441.0,96427.0,0.0928]
[1735229863703,0.006,96444.0,96428.0,0.01020993]
[1735229863704,0.051896,96438.0,96428.0,0.01020993]
[1735229863889,0.051896,96438.0,96429.0,0.01020993]
[1735229864088,0.057892,96444.0,96430.0,0.01020993]
[1735229864287,0.057892,96444.0,96428.0,0.002]
[1735229864487,0.057892,96444.0,96429.0,0.01020994]
[1735229864790,0.051892,96444.0,96428.0,0.002]
[1735229865102,0.051889,96451.0,96430.0,0.15488623]
[1735229865290,0.05189,96448.0,96432.0,0.051899]
[1735229865491,0.05189,96448.0,96433.0,0.0939]
[1735229865689,0.05189,96448.0,96433.0,0.1907]
[1735229866093,0.0954,96459.0,96433.0,0.1907]
[1735229866401,0.05189,96449.0,96432.0,0.001]
[1735229866588,0.051898,96433.0,96432.0,0.001]
[1735229866789,0.147284,96459.0,96432.0,0.001]
[1735229867085,0.051894,96441.0,96432.0,0.001]
[1735229867311,0.147284,96459.0,96433.0,0.001]
[1735229867312,0.0954,96459.0,96433.0,0.001]
[1735229867497,0.051893,96443.0,96433.0,0.001]
[1735229868300,0.001,96448.0,96433.0,0.001]
[1735229868498,0.051898,96435.0,96433.0,0.001]
[1735229868702,0.15488623,96450.0,96432.0,0.001]
[1735229868996,0.051898,96433.0,96432.0,0.001]
[1735229869204,1.551898,96433.0,96432.0,0.001]
[1735229869792,0.051898,96433.0,96432.0,0.001]
[1735229869994,0.051904,96423.0,96416.0,0.0144782]
[1735229870201,0.051904,96423.0,96413.0,0.186]
[1735229870703,0.0519,96430.0,96417.0,0.051907]
[1735229871004,0.051901,96428.0,96413.0,0.186]
[1735229871206,0.15488623,96430.0,96413.0,0.2010926]
[1735229871391,0.15488623,96430.0,96413.0,0.1089926]
[1735229871702,0.008,96433.0,96413.0,0.1089926]
[1735229872004,0.051904,96423.0,96413.0,0.1089926]
[1735229872199,0.15588623,96430.0,96413.0,0.1089926]
[1735229872389,0.15588623,96430.0,96413.0,0.0150926]
[1735229872589,0.15588623,96430.0,96413.0,0.001]
[1735229872590,0.051901,96429.0,96413.0,0.001]
[1735229872789,0.051904,96423.0,96413.0,0.001]
[1735229873003,0.15588623,96430.0,96413.0,0.001]
[1735229873202,0.051903,96424.0,96413.0,0.001]
[1735229873790,0.001,96430.0,96413.0,0.001]
[1735229873992,0.051905,96421.0,96413.0,0.001]
[1735229874805,0.051905,96421.0,96406.0,0.05346882]
[1735229875103,0.051905,96420.0,96413.0,0.001]
[1735229875304,0.15488623,96430.0,96413.0,0.001]
[1735229875604,0.12352838,96447.0,96420.0,0.15488623]
[1735229875791,0.12352838,96447.0,96437.0,0.15488623]
[1735229875991,0.12352838,96447.0,96438.0,0.243495]
[1735229876304,0.12352838,96447.0,96439.0,0.051895]
[1735229876501,0.00155591,96453.0,96438.0,0.4916]
[1735229876709,0.12352838,96463.0,96439.0,0.0912]
[1735229876891,0.12352838,96463.0,96450.0,0.15488623]
[1735229877712,0.12352838,96463.0,96451.0,0.01023521]
[1735229878002,0.12352838,96463.0,96452.0,0.01023521]
[1735229878202,0.12352838,96463.0,96462.0,0.051883]
[1735229878505,0.051873,96481.0,96463.0,0.051882]
[1735229878707,0.00155544,96483.0,96462.0,0.01023521]
[1735229878708,0.00155544,96483.0,96470.0,0.20676423]
[1735229879812,0.00155544,96483.0,96471.0,0.01021075]
[1735229880108,0.00155544,96483.0,96472.0,0.01021075]
[1735229880299,0.00155544,96483.0,96473.0,0.01021075]
[1735229880501,0.00155544,96483.0,96474.0,0.01021075]
[1735229880695,0.00955544,96483.0,96475.0,0.01021075]
[1735229880896,0.00955544,96483.0,96476.0,0.01021075]
[1735229881104,0.00955544,96483.0,96471.0,0.1827]
[1735229881401,0.01055544,96483.0,96472.0,0.01121119]
[1735229881605,0.01055544,96483.0,96473.0,0.01021119]
[1735229881808,0.15488623,96520.0,96472.0,0.3]
[1735229882008,0.051858,96508.0,96489.0,0.051868]
[1735229882196,0.051861,96503.0,96480.0,0.15488623]
[1735229882398,0.051861,96502.0,96480.0,0.051873]
[1735229882603,0.051861,96502.0,96475.0,0.001]
[1735229882911,0.051861,96502.0,96476.0,0.01019788]
[1735229883401,0.051861,96502.0,96477.0,0.01019788]
[1735229883600,0.008,96483.0,96478.0,0.01019788]
[1735229883805,0.008,96483.0,96479.0,0.01019788]
[1735229884007,0.051874,96478.0,96465.0,0.30896376]
[1735229884311,0.051875,96477.0,96476.0,0.003]
[1735229884493,0.15488623,96481.0,96465.0,0.30896376]
[1735229884695,0.05188,96466.0,96465.0,0.30896376]
[1735229884899,0.0899,96482.0,96465.0,0.30896376]
[1735229885095,0.051878,96471.0,96465.0,0.30896376]
[1735229885295,0.051879,96469.0,96464.0,0.01354924]
[1735229885500,0.051879,96469.0,96450.0,0.15488623]
[1735229885699,0.15488623,96480.0,96440.0,0.15488623]
[1735229885908,0.15488623,96480.0,96439.0,0.051895]
[1735229885909,0.15488623,96470.0,96439.0,0.051895]
[1735229886110,0.3,96480.0,96438.0,0.30896376]
[1735229886111,0.15488623,96460.0,96438.0,0.30896376]
[1735229886295,0.051891,96448.0,96443.0,0.01510865]
[1735229886497,0.051891,96448.0,96443.0,0.00155525]
[1735229887111,0.15488623,96460.0,96443.0,0.00155525]
[1735229887112,0.051891,96447.0,96443.0,0.00155525]
[1735229887405,0.051887,96455.0,96443.0,0.00355525]
[1735229887601,0.051888,96453.0,96443.0,0.00355525]
[1735229887801,1.5,96465.0,96443.0,0.00355525]
[1735229888004,0.15488623,96460.0,96443.0,0.00155525]
[1735229888207,0.051892,96444.0,96443.0,0.00155525]
[1735229888396,0.051892,96444.0,96425.0,0.36928497]
[1735229888397,0.051899,96432.0,96413.0,0.30896376]
[1735229888601,0.051899,96432.0,96414.0,0.01021431]
[1735229888805,0.15488623,96450.0,96420.0,0.15488623]
[1735229889010,0.15488623,96450.0,96413.0,0.3229871]
[1735229889011,0.0015559,96452.0,96443.0,0.001]
[1735229889203,0.05189,96448.0,96443.0,0.001]
[1735229889403,0.0015559,96452.0,96443.0,0.001]
[1735229889704,0.051889,96450.0,96443.0,0.001]
[1735229889908,0.051891,96447.0,96443.0,0.001]
[1735229890803,0.051891,96447.0,96431.0,0.01021173]
[1735229891000,0.051891,96447.0,96430.0,0.0519]
[1735229891199,0.051891,96447.0,96431.0,0.01021154]
[1735229891397,0.052891,96447.0,96430.0,0.0519]
[1735229891606,0.052891,96447.0,96443.0,0.001]
[1735229892009,0.15488623,96490.0,96443.0,0.301]
[1735229892317,0.00072,96485.0,96460.0,0.15488623]
[1735229892509,0.1006,96491.0,96444.0,0.0963]
[1735229892510,0.051886,96457.0,96444.0,0.0963]
[1735229892807,0.051883,96463.0,96445.0,0.01022365]
[1735229893113,0.05188,96468.0,96444.0,0.0963]
[1735229893309,0.15488623,96470.0,96444.0,0.0963]
[1735229893612,0.001,96457.0,96444.0,0.1023]
[1735229894313,0.051885,96458.0,96444.0,0.1013]
[1735229894807,0.15488623,96470.0,96445.0,0.003]
[1735229894808,0.051886,96456.0,96445.0,0.003]
[1735229895010,0.002,96457.0,96445.0,0.003]
[1735229895512,0.05189,96449.0,96443.0,0.01325182]
[1735229895707,0.051892,96445.0,96444.0,0.002]
[1735229896104,0.051887,96454.0,96444.0,0.002]
[1735229896513,0.002,96457.0,96445.0,0.002]
[1735229896710,0.051888,96452.0,96445.0,0.002]
[1735229897601,0.15488623,96470.0,96445.0,0.002]
[1735229897804,0.12352838,96484.0,96460.0,0.15488623]
[1735229898012,0.12352838,96484.0,96482.0,0.051872]
[1735229898218,0.1516937,96489.0,96470.0,0.15488623]
[1735229898406,0.00155475,96521.0,96488.0,0.051869]
[1735229898606,0.18126175,96495.0,96489.0,0.01018282]
[1735229898917,0.18126175,96495.0,96488.0,0.051869]
[1735229899412,0.051857,96509.0,96488.0,0.051869]
[1735229899718,0.051857,96509.0,96489.0,0.01018659]
[1735229899916,0.051857,96509.0,96488.0,0.051869]
[1735229900112,0.15488623,96520.0,96488.0,0.051869]
[1735229900320,0.004,96495.0,96488.0,0.051869]
[1735229900502,0.004,96495.0,96479.0,0.15488623]
[1735229900703,0.051858,96508.0,96480.0,0.01017946]
[1735229900908,0.051858,96508.0,96481.0,0.01017946]
[1735229901115,0.051858,96508.0,96479.0,0.70000629]
[1735229901116,0.051858,96508.0,96482.0,0.01017946]
[1735229901318,0.051858,96508.0,96483.0,0.01017745]
[1735229901617,0.051858,96508.0,96484.0,0.01017745]
[1735229901812,0.051858,96508.0,96485.0,0.01017745]
[1735229902017,0.051858,96508.0,96487.0,0.051869]
[1735229902319,0.004,96495.0,96490.0,0.15488623]
[1735229903416,0.051858,96508.0,96490.0,0.15488623]
[1735229903610,0.054858,96508.0,96490.0,0.15488623]
[1735229904017,0.051858,96508.0,96490.0,0.15488623]
[1735229904215,0.005,96495.0,96490.0,0.15488623]
[1735229904414,0.005,96495.0,96494.0,0.051865]
[1735229904720,0.005,96508.0,96481.0,0.01017822]
[1735229904913,0.005,96508.0,96498.0,0.15488623]
[1735229905712,0.005,96508.0,96480.0,0.41328852]
[1735229906017,0.051862,96500.0,96488.0,0.24460006]
[1735229906217,0.005,96508.0,96495.0,0.051865]
[1735229906519,0.051849,96526.0,96498.0,0.15488623]
[1735229906718,0.051849,96526.0,96518.0,0.15488623]
[1735229907023,0.05185,96522.0,96510.0,0.15488623]
[1735229907824,0.05185,96522.0,96502.0,0.051861]
[1735229909730,0.05785,96522.0,96510.0,0.001]
[1735229909917,0.051852,96520.0,96510.0,0.001]
[1735229910619,0.051852,96520.0,96502.0,0.01350265]
[1735229910620,0.051852,96520.0,96502.0,0.01450265]
[1735229910821,0.051852,96520.0,96502.0,0.001]
[1735229911218,0.006,96522.0,96502.0,0.001]
[1735229911525,0.051856,96513.0,96502.0,0.001]
[1735229911720,0.051853,96517.0,96502.0,0.001]
[1735229912631,0.006,96522.0,96502.0,0.001]
[1735229913317,0.008,96520.0,96510.0,0.001]
[1735229913623,0.051853,96518.0,96510.0,0.001]
[1735229914022,0.008,96520.0,96510.0,0.001]
[1735229914023,0.051853,96517.0,96510.0,0.001]
[1735229914221,0.05186,96504.0,96502.0,0.001]
[1735229914825,0.051856,96511.0,96502.0,0.001]
[1735229915015,0.051858,96509.0,96501.0,0.01302709]
[1735229915221,0.051858,96509.0,96490.0,0.24460006]
[1735229915222,0.051858,96509.0,96490.0,0.39948629]
[1735229915525,0.051859,96507.0,96490.0,0.39948629]
[1735229915922,0.051859,96507.0,96491.0,0.051867]
[1735229916130,0.051859,96507.0,96492.0,0.0101938]
[1735229916431,0.051859,96507.0,96490.0,0.40000629]
[1735229916432,0.059853,96518.0,96497.0,0.051864]
[1735229916626,0.007,96504.0,96502.0,0.001]
[1735229917134,0.007,96504.0,96500.0,0.15488623]
[1735229917135,0.004,96507.0,96497.0,0.051864]
[1735229917727,0.007,96504.0,96502.0,0.001]
[1735229918434,0.19415462,96535.0,96503.0,0.05186]
[1735229918626,0.051852,96519.0,96503.0,0.05186]
[1735229919023,0.051852,96519.0,96502.0,0.001]
[1735229919418,0.051852,96519.0,96498.0,0.051863]
[1735229919734,0.001,96507.0,96505.0,0.051859]
[1735229920033,0.051845,96533.0,96512.0,0.051856]
[1735229920234,0.001,96519.0,96512.0,0.051856]
[1735229920431,0.001,96519.0,96513.0,0.0983]
[1735229921131,0.051845,96532.0,96513.0,0.0983]
[1735229921332,0.001,96533.0,96513.0,0.0983]
[1735229921637,0.001,96533.0,96514.0,0.0102051]
[1735229921930,0.001,96533.0,96522.0,0.05185]
[1735229922939,0.051841,96539.0,96522.0,0.05185]
[1735229923125,0.051841,96539.0,96523.0,0.05185]
[1735229923536,0.051842,96538.0,96514.0,0.0967]
[1735229923722,0.051842,96538.0,96520.0,0.051851]
[1735229923927,0.051842,96538.0,96521.0,0.01020772]
[1735229924236,0.051842,96538.0,96522.0,0.01120772]
[1735229924237,0.001,96533.0,96522.0,0.01120772]
[1735229924536,0.001,96533.0,96523.0,0.01020772]
[1735229924725,0.001,96533.0,96524.0,0.01020772]
[1735229924922,0.001,96533.0,96522.0,0.001]
[1735229925130,0.001,96533.0,96523.0,0.01021523]
[1735229925426,0.001,96533.0,96527.0,0.051847]